bitfinex/quotes_ETHUSD_20251201
["timestamp","ask_amount","ask_price","bid_price","bid_amount"]
[1764575826469,1e-08,2845.0,2844.9,11.57131179]
[1764575827074,1e-08,2845.0,2844.9,12.03761179]
[1764575828776,1e-08,2845.0,2844.9,11.57131179]
[1764575830477,1e-08,2845.0,2844.9,12.91859904]
[1764575830646,1e-08,2845.0,2844.9,12.44311579]
[1764575831757,3.51253014,2847.0,2844.9,12.44311579]
[1764575832081,0.00119186,2845.8,2845.6,0.72559411]
[1764575832290,0.00119186,2845.8,2845.7,0.25814073]
[1764575832818,0.24559186,2845.8,2845.7,4.63861782]
[1764575832961,0.73519186,2845.8,2845.7,4.60347709]
[1764575833280,0.24559186,2845.8,2845.7,4.60347709]
[1764575833496,0.24559186,2845.8,2845.7,6.06251928]
[1764575834248,0.24559186,2845.8,2845.7,5.92171016]
[1764575834867,0.24559186,2845.8,2845.7,6.83046943]
[1764575834868,0.00119186,2845.8,2845.7,6.83046943]
[1764575835086,0.62179186,2845.8,2845.7,5.88656943]
[1764575835259,0.62179186,2845.8,2845.7,4.23966797]
[1764575835451,0.62179186,2845.8,2845.1,3.51481494]
[1764575835652,0.62179186,2845.8,2845.2,0.223]
[1764575835653,0.4921,2845.7,2845.2,0.223]
[1764575836150,0.1321,2845.3,2845.1,7.02962988]
[1764575836349,0.4921,2845.7,2845.2,0.223]
[1764575836584,0.1455,2845.6,2845.1,10.54444482]
[1764575836782,0.4752,2845.2,2845.1,3.51481494]
[1764575836964,0.4752,2845.2,2845.1,0.223]
[1764575837164,0.4752,2845.2,2845.1,0.94859411]
[1764575837165,0.624,2845.2,2845.1,0.94859411]
[1764575838876,0.624,2845.2,2845.1,4.46340905]
[1764575839997,0.624,2845.2,2844.7,7.03061834]
[1764575840197,0.4921,2845.1,2844.7,3.51530917]
[1764575840494,0.3244,2844.8,2844.7,3.73830917]
[1764575840868,0.8148,2844.8,2844.7,3.73830917]
[1764575841559,0.8148,2844.8,2844.6,3.5164012]
[1764575841764,0.8185,2844.7,2844.6,3.51639351]
[1764575842004,1.56829492,2844.7,2844.6,3.51639351]
[1764575842376,0.8185,2844.7,2844.6,3.51639351]
[1764575843366,0.8185,2844.7,2844.6,0.001]
[1764575847173,7.49794916,2844.7,2844.6,0.001]
[1764575847773,0.8185,2844.7,2844.6,0.001]
[1764575850892,0.405504,2844.9,2844.6,0.001]
[1764575851092,7.38794448,2844.8,2844.6,0.001]
[1764575851963,0.70849532,2844.8,2844.6,0.001]
[1764575852575,7.08495316,2845.2,2844.6,0.001]
[1764575852969,0.405504,2845.0,2844.6,0.001]
[1764575853896,3.92048683,2845.0,2844.6,0.001]
[1764575855067,0.405504,2844.9,2844.6,0.001]
[1764575855397,0.223,2845.4,2844.6,0.001]
[1764575855581,6.67944916,2844.9,2844.6,0.001]
[1764575855784,7.34739408,2844.9,2844.6,0.001]
[1764575856502,6.67944916,2844.7,2844.6,0.001]
[1764575859601,0.66794492,2844.9,2844.6,0.001]
[1764575861713,0.405504,2845.0,2844.6,0.001]
[1764575862482,0.00528428,2844.9,2844.6,0.001]
[1764575862977,6.68473344,2844.9,2844.6,0.001]
[1764575863177,0.00528428,2844.9,2844.6,0.001]
[1764575863382,0.405504,2845.0,2844.6,0.001]
[1764575863600,1.08228659,2844.9,2844.6,0.001]
[1764575863776,1.08757087,2844.9,2844.6,0.001]
[1764575863979,1.08228659,2844.9,2844.6,0.001]
[1764575864280,0.00528428,2844.8,2844.6,0.001]
[1764575865110,0.39937201,2845.0,2844.6,0.001]
[1764575865322,1.08228659,2844.9,2844.6,0.001]
[1764575868620,11.27680155,2844.9,2844.6,0.001]
[1764575868786,7.08495316,2844.7,2844.6,0.001]
[1764575870988,1.08228659,2844.9,2844.6,0.001]
[1764575871720,4.59736696,2844.9,2844.6,0.001]
[1764575872022,11.27681612,2844.9,2844.6,0.001]
[1764575872224,0.64087947,2844.8,2844.6,0.001]
[1764575872523,7.08495316,2844.7,2844.6,0.001]
[1764575873728,10.60026233,2844.7,2844.6,0.001]
[1764575874916,10.82326233,2844.7,2844.6,0.001]
[1764575875098,4.14381317,2844.7,2844.6,0.001]
[1764575875298,4.97380269,2844.7,2844.6,0.001]
[1764575875726,1.45849352,2844.7,2844.6,0.001]
[1764575876099,0.223,2844.7,2844.6,0.001]
[1764575876299,3.73830917,2844.7,2844.6,0.001]
[1764575876502,4.14381317,2844.7,2844.6,0.001]
[1764575876913,0.223,2844.7,2844.6,0.001]
[1764575879729,0.223,2844.7,2844.6,0.9693]
[1764575879907,0.223,2844.7,2844.6,0.001]
[1764575880101,3.51519957,2844.8,2844.6,0.001]
[1764575880429,6.67944916,2844.7,2844.6,0.001]
[1764575881024,10.41757585,2844.9,2844.6,0.001]
[1764575882540,6.67944916,2844.7,2844.6,0.001]
[1764575882703,7.08495316,2844.7,2844.6,0.001]
[1764575884005,10.60026233,2844.7,2844.6,0.001]
[1764575884233,7.08495316,2844.7,2844.6,0.001]
[1764575884434,10.60026233,2844.7,2844.6,0.001]
[1764575885734,6.67944916,2844.9,2844.6,0.001]
[1764575886034,0.223,2844.8,2844.6,0.001]
[1764575888940,0.002,2845.0,2844.6,0.001]
[1764575889239,0.225,2845.0,2844.7,0.4813]
[1764575889736,0.225,2845.0,2844.6,0.488]
[1764575890132,0.225,2845.0,2844.6,3.51641927]
[1764575890330,0.225,2845.0,2844.6,3.8682612]
[1764575890738,6.67944916,2844.8,2844.6,0.001]
[1764575895234,0.405504,2844.9,2844.6,0.001]
[1764575895939,0.002,2845.0,2844.8,0.4813]
[1764575896139,0.002,2845.0,2844.9,0.4813]
[1764575896440,0.002,2845.0,2844.9,0.9683]
[1764575896820,0.002,2845.0,2844.9,4.48336204]
[1764575897018,0.002,2845.0,2844.9,0.4813]
[1764575897443,0.002,2845.0,2844.9,0.9683]
[1764575899552,0.002,2845.0,2844.9,4.48336204]
[1764575899717,0.002,2845.0,2844.9,5.28321524]
[1764575905048,0.002,2845.0,2844.9,0.7998532]
[1764575905223,0.002,2845.0,2844.7,7.03060286]
[1764575905427,0.002,2845.0,2844.7,7.51740286]
[1764575905747,0.002,2845.0,2844.8,0.4868]
[1764575905952,0.002,2845.0,2844.9,0.4715]
[1764575906136,0.002,2845.0,2844.9,3.98656204]
[1764575906342,0.002,2845.0,2844.9,4.47336204]
[1764575906543,0.002,2845.0,2844.9,5.27221512]
[1764575906743,0.002,2845.0,2844.9,4.78541512]
[1764575907537,0.002,2845.0,2844.9,5.25081512]
[1764575907741,0.002,2845.0,2844.9,4.78541512]
[1764575908667,0.002,2845.0,2844.9,5.25081512]
[1764575908851,0.002,2845.0,2844.6,0.72659411]
[1764575909049,0.002,2845.0,2844.6,4.24198911]
[1764575909232,0.002,2845.0,2844.6,3.516395]
[1764575909434,0.002,2845.0,2844.6,0.001]
[1764575909633,6.12459123,2844.9,2844.6,0.001]
[1764575910732,0.002,2845.0,2844.6,0.001]
[1764575912145,3.51695379,2845.0,2844.6,0.001]
[1764575912344,0.405504,2844.9,2844.6,0.001]
[1764575912551,6.53009523,2844.9,2844.6,0.001]
[1764575913173,0.405504,2844.9,2844.6,0.001]
[1764575913350,0.407504,2845.0,2844.6,0.001]
[1764575913741,3.92245001,2845.0,2844.6,0.001]
[1764575914157,0.414545,2844.9,2844.6,0.001]
[1764575914567,3.92964162,2844.9,2844.6,0.001]
[1764575915151,6.53009523,2844.7,2844.6,0.001]
[1764575915872,0.405504,2844.7,2844.6,0.001]
[1764575916373,3.92962637,2844.9,2844.6,0.001]
[1764575916578,1.41112576,2844.8,2844.6,0.001]
[1764575916872,0.405504,2844.9,2844.6,0.001]
[1764575917168,0.002,2845.0,2844.6,0.001]
[1764575917370,0.002,2845.0,2844.6,0.4664]
[1764575918446,3.51695152,2845.0,2844.6,0.4664]
[1764575918743,0.37399515,2844.9,2844.6,0.4664]
[1764575919341,0.002,2845.0,2844.6,3.98176496]
[1764575920145,3.51694225,2845.0,2844.6,0.4664]
[1764575920850,0.002,2845.0,2844.6,3.9818295]
[1764575921047,0.002,2845.0,2844.6,0.4664]
[1764575921483,0.002,2845.0,2844.6,3.98181932]
[1764575925381,0.002,2845.0,2844.7,0.4654]
[1764575927876,0.002,2845.0,2844.8,3.5151856]
[1764575929058,0.002,2845.0,2844.7,3.98070533]
[1764575930789,0.002,2845.0,2844.8,0.4654]
[1764575930991,0.002,2845.0,2844.7,3.98070533]
[1764575934881,0.002,2845.0,2844.9,0.4984]
[1764575935287,0.002,2845.0,2844.7,0.74981362]
[1764575935607,0.405504,2844.8,2844.6,0.001]
[1764575936677,3.92070088,2844.8,2844.6,0.001]
[1764575936867,3.92081317,2844.7,2844.6,0.001]
[1764575941865,4.64640728,2844.7,2844.6,0.001]
[1764575943973,4.64640728,2844.7,2844.5,0.001]
[1764575943974,1.13109811,2844.6,2844.5,0.001]
[1764575944180,7.25568934,2844.6,2844.5,0.001]
[1764575945378,1.13109811,2844.6,2844.5,0.001]
[1764575945684,4.86953085,2844.6,2844.5,0.001]
[1764575946406,4.46402685,2844.6,2844.5,0.001]
[1764575946713,4.86953085,2844.6,2844.5,0.001]
[1764575949398,4.86425845,2844.6,2844.5,0.001]
[1764575949603,3.51537549,2844.7,2844.5,0.4994]
[1764575949785,3.51537549,2844.7,2844.6,0.4984]
[1764575949983,7.25375059,2844.7,2844.5,0.001]
[1764575950207,0.405504,2844.6,2844.5,0.001]
[1764575951922,1.17142942,2844.6,2844.5,0.001]
[1764575952082,4.68686216,2844.6,2844.5,0.001]
[1764575954107,3.92093674,2844.6,2844.5,0.001]
[1764575954807,3.92093674,2844.6,2844.5,0.4994]
[1764575955611,0.405504,2844.6,2844.5,0.9671]
[1764575961287,0.002,2845.0,2844.5,4.48265633]
[1764575961522,0.002,2845.0,2844.9,0.4984]
[1764575961697,0.002,2845.0,2844.9,0.9661]
[1764575963420,0.002,2845.0,2844.9,0.4984]
[1764575963591,0.002,2845.0,2844.9,0.9672]
[1764575963919,0.002,2845.0,2844.9,0.4984]
[1764575965621,0.002,2845.0,2844.9,0.9672]
[1764575966824,0.002,2845.0,2844.9,5.28202959]
[1764575968725,0.002,2845.0,2844.9,1.76696755]
[1764575969093,0.002,2845.0,2844.9,5.28202959]
[1764575970205,0.002,2845.0,2844.9,1.76696755]
[1764575970427,0.002,2845.0,2844.9,0.9672]
[1764575970794,0.002,2845.0,2844.9,4.48226204]
[1764575971202,0.002,2845.0,2844.9,0.9672]
[1764575972133,0.002,2845.0,2844.9,4.48226204]
[1764575975540,0.002,2845.0,2844.9,0.4817]
[1764575975853,0.002,2845.0,2844.9,4.39644989]
[1764575977324,0.002,2845.0,2844.9,3.99676204]
[1764575977526,0.002,2845.0,2844.9,4.46226204]
[1764575981535,0.002,2845.0,2844.9,3.99676204]
[1764575982422,0.002,2845.0,2844.9,0.4817]
[1764575982625,0.002,2845.0,2844.9,3.99676204]
[1764575982990,0.1849,2846.9,2846.7,0.17981326]
[1764575983121,7.39182332,2846.8,2846.7,0.17981326]
[1764575983326,14.07614664,2846.8,2846.7,0.17981326]
[1764575983537,2.15169877,2846.7,2845.4,0.4655]
[1764575983753,3.19320459,2846.7,2845.4,0.4655]
[1764575983953,0.72559411,2846.3,2845.4,0.4655]
[1764575984252,6.90732332,2846.2,2845.4,0.4655]
[1764575984630,0.4743,2846.1,2845.5,7.0286417]
[1764575984830,0.223,2846.0,2845.5,7.0286417]
[1764575985043,0.223,2846.0,2845.5,3.51432085]
[1764575985221,0.6973,2846.0,2845.5,3.51432085]
[1764575985427,0.6973,2846.0,2845.5,3.97982085]
[1764575985828,0.6973,2846.0,2845.5,7.4941417]
[1764575986558,0.6973,2846.0,2845.5,3.97982085]
[1764575986862,0.4743,2845.9,2845.5,3.97982085]
[1764575987226,0.6592,2845.9,2845.5,3.51432085]
[1764575987436,0.6592,2845.9,2845.3,3.98003363]
[1764575987437,0.4845,2845.6,2845.3,3.51453363]
[1764575987636,0.7075,2845.6,2845.2,3.51463643]
[1764575988057,1.1818,2845.6,2845.2,3.98013643]
[1764575988263,1.1818,2845.6,2845.1,3.51476027]
[1764575988627,0.4743,2845.5,2845.1,3.51476027]
[1764575989236,0.4743,2845.5,2845.1,3.98026027]
[1764575989557,0.223,2845.6,2845.1,7.49507521]
[1764575989856,0.223,2845.6,2845.2,0.4655]
[1764575990638,0.223,2845.6,2845.3,3.51456788]
[1764575991162,0.223,2845.6,2845.3,7.49463576]
[1764575991666,0.4743,2845.8,2845.3,7.49463576]
[1764575991968,0.223,2845.7,2845.3,3.98006788]
[1764575992134,0.223,2845.6,2845.3,0.4655]
[1764575992335,0.4845,2845.4,2844.8,0.4665]
[1764575992535,0.014,2845.3,2844.9,3.51506204]
[1764575992755,0.4798,2844.9,2844.8,0.001]
[1764575993367,0.5216,2844.9,2844.8,0.001]
[1764575993663,2.41878644,2844.9,2844.8,0.001]
[1764575994769,0.9726,2844.9,2844.8,0.001]
[1764575994968,1.1956,2844.9,2844.8,0.001]
[1764575996568,4.71066204,2844.9,2844.8,0.001]
[1764575996871,1.1956,2844.9,2844.8,0.001]
[1764575997068,8.28542732,2844.9,2844.8,0.001]
[1764575997260,6.01726818,2844.9,2844.8,0.001]
[1764575997451,2.50220614,2844.9,2844.8,0.001]
[1764575997648,6.01726818,2844.9,2844.8,0.001]
[1764575998449,5.52446818,2844.9,2844.8,0.001]
[1764575998647,1.52960614,2844.9,2844.8,0.001]
[1764575998846,1.79830614,2844.9,2844.8,0.001]
[1764575999064,2.02130614,2844.9,2844.8,0.001]
[1764575999375,5.98736818,2844.9,2844.8,0.001]
[1764576000497,6.71296229,2844.9,2844.8,0.001]
[1764576000837,3.19790025,2844.9,2844.8,0.001]
[1764576001066,6.71296229,2844.9,2844.8,0.001]
[1764576001677,14.39664683,2844.9,2844.8,0.001]
[1764576001860,7.71232351,2844.9,2844.8,0.001]
[1764576002066,14.39664683,2844.9,2844.8,0.001]
[1764576002373,26.22133683,2844.9,2844.8,0.001]
[1764576002574,26.27133683,2844.9,2844.8,0.001]
[1764576002871,44.44664683,2844.9,2844.8,0.001]
[1764576003077,44.22364683,2844.9,2844.8,0.001]
[1764576003253,31.13109811,2844.8,2844.5,0.001]
[1764576003460,9.86501243,2844.6,2844.5,0.001]
[1764576003767,11.59845855,2844.6,2844.5,0.001]
[1764576003974,25.53142355,2844.6,2844.5,0.001]
[1764576004377,15.69497894,2844.6,2844.5,0.001]
[1764576004586,15.77700755,2844.6,2844.5,0.001]
[1764576004748,16.67810969,2844.6,2844.5,0.001]
[1764576004943,25.51819043,2844.6,2844.5,0.001]
[1764576005348,23.94309243,2844.6,2844.5,0.001]
[1764576005780,24.43797002,2844.6,2844.5,0.001]
[1764576006077,16.43318943,2844.6,2844.5,0.001]
[1764576006244,13.69266243,2844.6,2844.5,0.001]
[1764576006583,18.40318043,2844.6,2844.5,0.001]
[1764576006741,18.18018043,2844.6,2844.5,0.001]
[1764576006942,3.75573274,2844.6,2844.5,0.001]
[1764576007173,4.20673274,2844.6,2844.5,0.001]
[1764576007681,5.11483085,2844.6,2844.5,0.001]
[1764576007861,4.70932685,2844.6,2844.5,0.001]
[1764576008044,4.93232685,2844.6,2844.5,0.001]
[1764576008670,5.33783085,2844.6,2844.5,0.001]
[1764576009146,7.31479282,2844.6,2844.5,0.001]
[1764576010884,23.26904882,2844.6,2844.5,0.001]
[1764576011050,9.97518882,2844.6,2844.5,0.001]
[1764576012053,9.75218882,2844.6,2844.5,0.001]
[1764576012253,9.97518882,2844.6,2844.5,0.001]
[1764576014595,10.09518882,2844.6,2844.5,0.001]
[1764576014800,7.21179282,2844.6,2844.5,0.001]
[1764576014997,4.58402685,2844.6,2844.5,0.4805]
[1764576015174,4.98953085,2844.6,2844.5,0.4805]
[1764576015492,5.07572685,2844.6,2844.5,0.001]
[1764576015877,5.48123085,2844.6,2844.5,0.001]
[1764576017000,5.93223085,2844.6,2844.5,0.001]
[1764576017664,19.51849997,2844.6,2844.5,0.001]
[1764576018600,16.87258797,2844.6,2844.5,0.001]
[1764576020001,6.92463697,2844.6,2844.5,0.001]
[1764576020201,6.70163697,2844.6,2844.5,0.001]
[1764576020501,13.05537661,2844.6,2844.5,0.001]
[1764576020967,6.70163697,2844.6,2844.5,0.001]
[1764576021172,5.07572685,2844.6,2844.5,0.001]
[1764576021404,5.48123085,2844.6,2844.5,0.001]
[1764576021571,4.85272685,2844.6,2844.5,0.001]
[1764576021768,0.343,2844.6,2844.5,0.967]
[1764576022204,1.06859411,2844.6,2844.5,0.967]
[1764576022509,4.76653085,2844.6,2844.5,0.967]
[1764576022704,4.58402685,2844.6,2844.5,0.967]
[1764576023002,4.98953085,2844.6,2844.5,0.4805]
[1764576023676,5.47313085,2844.6,2844.5,0.001]
[1764576026884,5.94483085,2844.6,2844.5,0.001]
[1764576028695,5.47313085,2844.6,2844.5,0.001]
[1764576028892,37.08596912,2844.6,2844.5,0.001]
[1764576029097,13.68203512,2844.6,2844.5,0.001]
[1764576029330,8.98830238,2844.6,2844.5,0.4633]
[1764576029532,1.47409811,2844.6,2844.5,0.4633]
[1764576029836,4.98953085,2844.6,2844.5,0.001]
[1764576030131,5.47313085,2844.6,2844.5,0.001]
[1764576030729,4.98953085,2844.6,2844.5,0.001]
[1764576031425,5.47313085,2844.6,2844.5,0.001]
[1764576032233,5.93233085,2844.6,2844.5,0.001]
[1764576033331,5.47313085,2844.6,2844.5,0.001]
[1764576034130,4.98953085,2844.6,2844.5,0.4877]
[1764576035130,6.78621528,2844.6,2844.5,0.001]
[1764576035533,18.98393787,2844.6,2844.5,0.001]
[1764576036443,22.39317787,2844.6,2844.5,0.001]
[1764576036737,19.57647787,2844.6,2844.5,0.001]
[1764576036921,12.89051587,2844.6,2844.5,0.001]
[1764576037545,20.91257787,2844.6,2844.5,0.001]
[1764576038535,37.38108687,2844.6,2844.5,0.001]
[1764576039441,28.45850587,2844.6,2844.5,0.001]
[1764576039642,37.43108687,2844.6,2844.5,0.001]
[1764576040145,37.87596446,2844.6,2844.5,0.001]
[1764576041047,36.41161733,2844.6,2844.5,0.001]
[1764576041738,36.83006074,2844.6,2844.5,0.001]
[1764576042223,17.11201474,2844.6,2844.5,0.001]
[1764576042635,19.99606574,2844.6,2844.5,0.001]
[1764576042845,25.85451987,2844.6,2844.5,0.001]
[1764576043225,25.36757187,2844.6,2844.5,0.001]
[1764576043751,41.07382387,2844.6,2844.5,0.001]
[1764576043935,41.51870146,2844.6,2844.5,0.001]
[1764576044740,44.28596446,2844.6,2844.5,0.001]
[1764576046047,10.89611717,2844.6,2844.5,0.4877]
[1764576046260,10.26843274,2844.6,2844.5,0.4877]
[1764576046458,10.99402685,2844.6,2844.5,0.4877]
[1764576046761,11.39953085,2844.6,2844.5,0.4877]
[1764576047259,10.99402685,2844.6,2844.5,0.4877]
[1764576047455,11.88633085,2844.6,2844.5,0.001]
[1764576049358,11.39953085,2844.6,2844.5,0.4877]
[1764576049759,11.88633085,2844.6,2844.5,0.001]
[1764576050158,4.52773674,2844.6,2844.5,0.001]
[1764576050324,4.75073674,2844.6,2844.5,0.001]
[1764576050530,5.47633085,2844.6,2844.5,0.001]
[1764576050734,6.83489528,2844.6,2844.5,0.001]
[1764576051070,21.69352719,2844.6,2844.5,0.001]
[1764576051259,18.12126019,2844.6,2844.5,0.001]
[1764576054693,13.88159719,2844.6,2844.5,0.001]
[1764576055271,20.30820519,2844.6,2844.5,0.001]
[1764576055572,19.39520519,2844.6,2844.5,0.001]
[1764576056075,19.40104219,2844.6,2844.5,0.001]
[1764576056671,18.94003819,2844.6,2844.5,0.001]
[1764576056852,19.16303819,2844.6,2844.5,0.001]
[1764576057053,20.12263519,2844.6,2844.5,0.001]
[1764576057254,6.93266819,2844.6,2844.5,0.001]
[1764576057444,6.37569528,2844.6,2844.5,0.001]
[1764576057643,5.66589528,2844.6,2844.5,0.4994]
[1764576057954,5.94483085,2844.6,2844.5,0.001]
[1764576058165,36.50180376,2844.6,2844.5,0.001]
[1764576058681,43.40668135,2844.6,2844.5,0.001]
[1764576060152,13.40668135,2844.6,2844.5,0.001]
[1764576060353,1.13109811,2844.5,2844.4,0.001]
[1764576060579,31.18109811,2844.1,2843.0,0.001]
[1764576060782,21.22807661,2844.1,2843.0,0.4702]
[1764576061086,21.70467661,2844.1,2843.0,0.4702]
[1764576061287,33.01204861,2844.1,2843.0,0.4702]
[1764576061489,18.20658402,2844.1,2843.2,0.4692]
[1764576062295,36.08322179,2844.1,2843.2,0.4692]
[1764576062790,30.94222179,2844.1,2843.3,0.4702]
[1764576062978,30.89222179,2844.1,2843.3,0.4702]
[1764576063385,30.90288179,2844.1,2843.3,0.4702]
[1764576064259,36.03322179,2844.1,2843.3,0.4702]
[1764576065001,35.81022179,2844.1,2843.3,0.4702]
[1764576065292,36.03322179,2844.1,2843.3,0.4702]
[1764576065458,27.34628679,2844.1,2843.3,0.4702]
[1764576065679,8.34774079,2844.1,2843.6,0.4692]
[1764576065983,10.01570887,2844.1,2843.3,0.001]
[1764576066183,10.01570887,2844.1,2843.4,0.4692]
[1764576066482,20.06774087,2844.1,2843.5,0.4692]
[1764576066996,11.55343596,2844.1,2844.0,0.4994]
[1764576067322,19.78319096,2844.1,2844.0,0.001]
[1764576067609,20.34016387,2844.1,2844.0,0.001]
[1764576067787,20.81676387,2844.1,2844.0,0.001]
[1764576068481,21.29844887,2844.1,2844.0,0.4994]
[1764576068818,8.64437088,2844.1,2844.0,0.9686]
[1764576069138,4.99014888,2844.1,2844.0,0.4994]
[1764576069450,4.99014888,2844.1,2844.0,0.9686]
[1764576069713,4.04155477,2844.1,2844.0,0.9686]
[1764576069908,3.85905077,2844.1,2844.0,0.9686]
[1764576070213,4.36164488,2844.1,2844.0,0.9686]
[1764576070518,5.46884888,2844.1,2844.0,0.001]
[1764576070722,6.33488028,2844.1,2844.0,0.4994]
[1764576070909,6.33488028,2844.1,2844.0,0.9686]
[1764576071613,5.54712179,2844.1,2844.0,0.9686]
[1764576072034,4.99014888,2844.1,2844.0,0.9686]
[1764576073142,0.12,2844.1,2844.0,0.9686]
[1764576076057,0.12,2844.1,2844.0,4.4847744]
[1764576076268,0.12,2844.1,2844.0,0.9686]
[1764576076436,0.12,2844.1,2844.0,4.4847744]
[1764576076995,0.12,2844.2,2844.0,5.28499381]
[1764576077158,0.12,2844.2,2844.1,0.4692]
[1764576077353,0.12,2844.2,2844.1,1.1507]
[1764576078771,4.04143114,2844.2,2844.1,0.4984]
[1764576078948,0.405504,2844.1,2844.0,0.001]
[1764576079349,0.405504,2844.1,2844.0,0.4994]
[1764576079570,0.405504,2844.1,2844.0,0.9686]
[1764576080983,3.92155477,2844.1,2844.0,0.9686]
[1764576082983,4.04155477,2844.1,2844.0,0.9686]
[1764576083961,4.04155477,2844.1,2844.0,0.4994]
[1764576084169,4.81960296,2844.1,2844.0,0.001]
[1764576084356,5.54719707,2844.1,2844.0,0.478]
[1764576084997,5.54719707,2844.1,2844.0,0.001]
[1764576085397,5.54719707,2844.1,2844.0,0.478]
[1764576085584,4.76914888,2844.1,2844.0,0.9459]
[1764576086190,4.99214888,2844.1,2844.0,0.9459]
[1764576091162,4.99214888,2844.1,2844.0,0.001]
[1764576091163,5.94554888,2844.1,2844.0,0.001]
[1764576094212,12.70282488,2844.1,2844.0,0.001]
[1764576094965,4.76914888,2844.1,2844.0,0.478]
[1764576095170,5.82065742,2844.1,2844.0,0.478]
[1764576095769,5.82065742,2844.1,2844.0,0.001]
[1764576098389,6.28875742,2844.1,2844.0,0.001]
[1764576100980,6.28875742,2844.1,2844.0,0.9684]
[1764576100981,4.99214888,2844.1,2844.0,0.9684]
[1764576101298,4.26655477,2844.1,2844.0,0.9684]
[1764576101482,4.99214888,2844.1,2844.0,0.9684]
[1764576102287,5.46024888,2844.1,2844.0,0.001]
[1764576102487,6.40305742,2844.1,2844.0,0.001]
[1764576102692,6.85495742,2844.1,2844.0,0.001]
[1764576103267,6.40305742,2844.1,2844.0,0.001]
[1764576103411,6.85495742,2844.1,2844.0,0.001]
[1764576104486,6.85495742,2844.1,2844.0,1.447708]
[1764576105109,5.93495742,2844.1,2844.0,1.946808]
[1764576105482,5.93495742,2844.1,2844.0,1.447708]
[1764576105684,6.40305742,2844.1,2844.0,1.447708]
[1764576106730,5.93495742,2844.1,2844.0,1.946808]
[1764576107514,4.26655477,2844.1,2844.0,2.415108]
[1764576108920,4.26655477,2844.1,2844.0,1.946808]
[1764576109219,4.26655477,2844.1,2844.0,1.447708]
[1764576109220,5.46024888,2844.1,2844.0,1.447708]
[1764576109427,6.40305742,2844.1,2844.0,1.447708]
[1764576110210,5.93495742,2844.1,2844.0,1.946808]
[1764576111220,5.93495742,2844.1,2844.0,2.415108]
[1764576113317,5.93495742,2844.1,2844.0,1.946808]
[1764576114297,4.76914888,2844.1,2844.0,2.404908]
[1764576114508,4.99214888,2844.1,2844.0,2.404908]
[1764576122015,4.76914888,2844.1,2844.0,2.404908]
[1764576122223,4.99214888,2844.1,2844.0,2.404908]
[1764576122600,4.99214888,2844.1,2844.0,1.946808]
[1764576124196,4.99214888,2844.1,2844.0,2.404908]
[1764576124434,4.99214888,2844.1,2844.0,1.946808]
[1764576125444,5.44564888,2844.1,2844.0,1.447708]
[1764576125648,4.99214888,2844.1,2844.0,1.447708]
[1764576125803,4.99214888,2844.1,2844.0,1.933208]
[1764576126937,1.25309811,2844.1,2844.0,1.933208]
[1764576127135,0.122,2844.1,2844.0,2.5847288]
[1764576128271,0.122,2844.1,2844.0,6.1009032]
[1764576132430,0.122,2844.1,2844.0,6.13606494]
[1764576133279,0.122,2844.1,2844.0,6.1009032]
[1764576136255,0.122,2844.1,2844.0,6.13606494]
[1764576136838,0.122,2844.1,2844.0,12.82360337]
[1764576137051,0.122,2844.1,2844.0,12.78844163]
[1764576138758,0.122,2844.1,2844.0,6.1009032]
[1764576142664,0.122,2844.1,2844.0,6.13606494]
[1764576142832,0.122,2844.1,2844.0,6.36106494]
[1764576144660,0.122,2844.1,2844.0,7.08665905]
[1764576144866,0.122,2844.1,2844.0,7.05149731]
[1764576147584,0.002,2844.4,2844.0,14.08384611]
[1764576147874,0.002,2844.4,2844.3,11.03205845]
[1764576148082,0.002,2844.4,2844.3,11.25505845]
[1764576148321,0.002,2844.4,2844.3,11.75205845]
[1764576148456,0.002,2844.4,2844.3,11.89293948]
[1764576149093,0.002,2844.7,2844.6,6.85335492]
[1764576149242,0.002,2844.7,2844.6,8.08964982]
[1764576149589,0.002,2844.8,2844.7,0.72559411]
[1764576149791,0.002,2845.4,2845.1,7.02962988]
[1764576150083,0.002,2845.4,2845.3,7.33175492]
[1764576150587,0.002,2845.4,2845.3,7.82875492]
[1764576150780,0.002,2845.4,2845.3,9.3858234]
[1764576151846,0.002,2845.4,2845.3,12.90039128]
[1764576153997,0.4673,2845.4,2844.6,1.2548949]
[1764576154163,0.4607,2844.7,2844.4,3.51567993]
[1764576154365,0.4607,2844.7,2844.5,0.223]
[1764576155067,0.4893,2845.0,2844.5,0.223]
[1764576155467,0.4653,2844.6,2844.5,0.223]
[1764576155701,0.4893,2845.0,2844.4,7.03135986]
[1764576156275,0.4893,2845.0,2844.4,8.2822071]
[1764576158502,0.894804,2845.2,2844.5,0.497]
[1764576159696,0.4893,2845.1,2844.6,7.03086548]
[1764576160091,0.4893,2845.1,2844.6,3.51543274]
[1764576161000,0.4893,2845.1,2844.5,3.51551727]
[1764576161001,0.4541,2844.7,2844.5,3.51551727]
[1764576161200,0.0186,2844.6,2844.3,3.51576453]
[1764576161402,0.405504,2845.0,2844.3,3.51576453]
[1764576161403,0.4761,2845.0,2844.3,3.51576453]
[1764576161579,0.4761,2844.9,2844.3,7.03156806]
[1764576161980,0.4761,2844.9,2844.3,3.51576453]
[1764576162300,0.4761,2844.9,2844.3,7.03156806]
[1764576164899,0.4541,2844.4,2844.0,1.447708]
[1764576165098,11.42698014,2844.9,2844.0,1.447708]
[1764576165099,0.4499,2844.1,2844.0,1.447708]